fUST/lending_fUST_20260115
["ID","MTS","AMOUNT","RATE_DAILY","PERIOD"]
[401941218,1768415448419,-2500.0,0.0001589,2]
[401941219,1768415448429,-559.4878042,0.0001589,2]
[401941220,1768415448438,-1211.66599686,0.0001589,2]
[401941221,1768415448448,-2500.0,0.0001589,2]
[401941222,1768415448457,-2500.0,0.0001589,2]
[401941223,1768415448467,-2500.0,0.0001589,2]
[401941224,1768415448476,-2500.0,0.0001589,2]
[401941225,1768415448486,-297.43886801,0.00015899,2]
[401941226,1768415448495,-174.61919141,0.00015899,2]
[401941227,1768415448505,-478.75725327,0.00015899,2]
[401941228,1768415448515,-2312.83697232,0.00015899,2]
[401941229,1768415448527,-119267.0323137,0.0001592,2]
[401941230,1768415448537,-1593.3,0.00015989,2]
[401941231,1768415448546,-1593.3,0.00015989,2]
[401941232,1768415448556,-1593.3,0.00015989,2]
[401941233,1768415448567,-1593.3,0.00015989,2]
[401941234,1768415448578,-1593.3,0.00015989,2]
[401941235,1768415448588,-1593.3,0.00015999,2]
[401941236,1768415448597,-215.88592206,0.00016,2]
[401941237,1768415448610,-171.14126243,0.00016012,2]
[401941238,1768415448624,-3000.0,0.00016012,2]
[401941239,1768415448633,-3000.0,0.00016012,2]
[401941240,1768415448643,-3000.0,0.00016012,2]
[401941241,1768415448655,-192.29139729,0.00016012,2]
[401941242,1768415448664,-3000.0,0.00016012,2]
[401941243,1768415448674,-3000.0,0.00016012,2]
[401941244,1768415448685,-3000.0,0.00016012,2]
[401941245,1768415448695,-2416.13825137,0.00016012,2]
[401941246,1768415448705,-3000.0,0.00016012,2]
[401941247,1768415448715,-2971.2102794,0.00016036,2]
[401941248,1768415448725,-500.0,0.00016039,2]
[401941249,1768415448735,-1593.3,0.00016069,2]
[401941250,1768415448744,-4717.32791166,0.00016071,2]
[401941251,1768415448754,-550.39437847,0.00016099,2]
[401941252,1768415448764,-1000.0,0.00016099,2]
[401941253,1768415448773,-1000.0,0.00016099,2]
[401941254,1768415448782,-1000.0,0.00016099,2]
[401941255,1768415448792,-1000.0,0.00016099,2]
[401941256,1768415448802,-1000.0,0.00016099,2]
[401941257,1768415448811,-475.0,0.000161,2]
[401941258,1768415448820,-475.0,0.000161,2]
[401941259,1768415448830,-475.0,0.000161,2]
[401941260,1768415448839,-475.0,0.000161,2]
[401941261,1768415448849,-475.0,0.000161,2]
[401941262,1768415448859,-475.0,0.000161,2]
[401941263,1768415448869,-475.0,0.000161,2]
[401941264,1768415448878,-475.0,0.000161,2]
[401941265,1768415448888,-475.0,0.000161,2]
[401941266,1768415448899,-475.0,0.000161,2]
[401941267,1768415448910,-475.0,0.000161,2]
[401941268,1768415448920,-475.0,0.000161,2]
[401941269,1768415448930,-475.0,0.000161,2]
[401941270,1768415448940,-475.0,0.0001611,2]
[401941271,1768415448951,-475.0,0.0001611,2]
[401941272,1768415448961,-475.0,0.0001611,2]
[401941273,1768415448973,-169.64970456,0.00016112,2]
[401941274,1768415448983,-677.92021943,0.00016112,2]
[401941275,1768415448994,-913.98686458,0.00016112,2]
[401941276,1768415449003,-3655.94745833,0.00016112,2]
[401941277,1768415449012,-8225.88178124,0.00016112,2]
[401941278,1768415449022,-621.76911371,0.00016112,2]
[401941279,1768415449032,-1095.40558009,0.00016112,2]
[401941280,1768415449041,-4381.62232035,0.00016112,2]
[401941281,1768415449052,-191.95790024,0.00016112,2]
[401941282,1768415449061,-767.83160094,0.00016112,2]
[401941283,1768415449072,-1727.62110213,0.00016112,2]
[401941284,1768415449081,-3071.32640378,0.00016112,2]
[401941285,1768415449093,-4798.9475059,0.00016112,2]
[401941286,1768415449102,-6910.4844085,0.00016112,2]
[401941287,1768415449112,-9405.93711157,0.00016112,2]
[401941288,1768415449122,-12285.30561512,0.00016112,2]
[401941289,1768415449131,-774.77585612,0.00016112,2]
[401941290,1768415449141,-3099.1034245,0.00016112,2]
[401941291,1768415449150,-1593.3,0.00016129,2]
[401941292,1768415449160,-151.0,0.00016164,2]
[401941293,1768415449170,-1600.0,0.00016164,2]
[401941294,1768415449179,-4474.3676466,0.00016171,2]
[401941295,1768415449189,-373.8417714,0.00016171,2]
[401941296,1768415449199,-133947.7136602,0.00016171,2]
[401941297,1768415449209,-44873.2832841,0.00016171,2]
[401941298,1768415449218,-10011.1631686,0.00016171,2]
[401941299,1768415449228,-160.35823449,0.00016216,2]
[401941300,1768415449237,-168.26957802,0.00016286,2]
[401941301,1768415449247,-1000.0,0.00016336,2]
[401941302,1768415449256,-1000.0,0.00016336,2]
[401941303,1768415449265,-1017.75755303,0.00016336,2]
[401941304,1768415449274,-1593.3,0.00016336,2]
[401941305,1768415449283,-1593.3,0.00016336,2]
[401941306,1768415449293,-1593.3,0.00016336,2]
[401941307,1768415449303,-1593.3,0.00016336,2]
[401941308,1768415449313,-1593.3,0.00016336,2]
[401941309,1768415449323,-1593.3,0.00016336,2]
[401941310,1768415449333,-1593.3,0.00016336,2]
[401941311,1768415449342,-1593.3,0.00016336,2]
[401941312,1768415449351,-1593.3055421,0.00016336,2]
[401941313,1768415449362,-992.54713058,0.0001635,2]
[401941314,1768415449371,-3970.18852231,0.0001635,2]
[401941315,1768415449380,-1800.0,0.00016412,2]
[401941316,1768415449390,-1000.0,0.00016426,2]
[401941317,1768415449400,-492.0,0.00016426,2]
[401941318,1768415449410,-500.0,0.00016438,2]
[401941319,1768415449420,-500.0,0.00016438,2]
[401941320,1768415449429,-649.05735745,0.00016438,2]
[401941321,1768415449441,-500.0,0.00016438,2]
[401941322,1768415449450,-500.0,0.00016438,2]
[401941323,1768415449460,-595.30780858,0.00016438,2]
[401941324,1768415449470,-300.0,0.00016438,2]
[401941325,1768415449481,-151.0,0.00016438,2]
[401941326,1768415449492,-151.0,0.00016438,2]
[401941327,1768415449501,-151.0,0.00016438,2]
[401941328,1768415449514,-151.0,0.00016438,2]
[401941329,1768415449524,-179.180636,0.00016438,2]
[401941330,1768415449534,-200.0,0.00016438,3]
[401941331,1768415449543,-200.0,0.00016438,3]
[401941332,1768415449553,-200.0,0.00016438,2]
[401941333,1768415449563,-164.26686219,0.00016438,2]
[401941334,1768415449574,-1044.67516775,0.00016438,2]
[401941335,1768415449587,-3000.0,0.00016438,2]
[401941336,1768415449598,-3000.0,0.00016438,2]
[401941337,1768415449611,-3000.0,0.00016438,2]
[401941338,1768415449620,-3000.0,0.00016438,2]
[401941339,1768415449631,-260.29560408,0.00016438,2]
[401941340,1768415449641,-184.29,0.0001644,2]
[401941341,1768415449651,-184.29,0.0001644,2]
[401941342,1768415449661,-184.29,0.0001644,2]
[401941343,1768415449671,-184.29,0.0001644,2]
[401941344,1768415449681,-181.08010149,0.00016447,2]
[401941345,1768415449692,-496.47127164,0.00016447,2]
[401941346,1768415449701,-2398.4119403,0.00016447,2]
[401941347,1768415449711,-200.0,0.00016473,2]
[401941348,1768415449720,-3500.0,0.0001656,2]
[401941349,1768415449730,-3500.0,0.0001656,2]
[401941350,1768415449740,-3500.0,0.0001656,2]
[401941351,1768415449750,-3500.0,0.0001656,2]
[401941352,1768415449760,-3500.0,0.0001656,2]
[401941353,1768415449771,-3500.0,0.0001656,2]
[401941354,1768415449781,-3500.0,0.0001656,2]
[401941355,1768415449791,-1096.95736168,0.00016677,9]
[401941356,1768415449802,-52216.225862,0.000169,3]
[401941357,1768415449812,-2100.0,0.0001696,2]
[401941358,1768415449822,-270.0,0.00016986,2]
[401941359,1768415449833,-2087.94374426,0.00016986,2]
[401941360,1768415449842,-3500.0,0.00016986,2]
[401941361,1768415449852,-3500.0,0.00016986,2]
[401941362,1768415449862,-3500.0,0.00016986,2]
[401941363,1768415449871,-187.78006525,0.00016995,2]
[401941364,1768415449881,-514.84070869,0.00016995,2]
[401941365,1768415449891,-2487.15318209,0.00016995,2]
[401941366,1768415449900,-95477.61285994,0.00017,2]
[401941367,1768415449910,-4000.0,0.00017108,2]
[401941368,1768415449920,-1892.75982988,0.00017108,2]
[401941369,1768415449930,-1917.48910491,0.00017108,2]
[401941370,1768415449943,-4000.0,0.00017108,2]
[401941371,1768415449954,-4000.0,0.00017108,2]
[401941372,1768415449964,-4000.0,0.00017108,2]
[401941373,1768415449975,-4000.0,0.00017108,2]
[401941374,1768415449986,-30000.0,0.00017216,2]
[401941375,1768415449996,-2258.0,0.0001722,2]
[401941376,1768415450007,-2400.0,0.0001726,2]
[401941377,1768415450017,-168.28,0.00017285,2]
[401941378,1768415450026,-5000.0,0.00017412,2]
[401941379,1768415450036,-2400.0,0.00017508,2]
[401941380,1768415450046,-174.48080933,0.00017534,2]
[401941381,1768415450056,-400.0,0.00017534,2]
[401941382,1768415450066,-4000.0,0.00017534,2]
[401941383,1768415450076,-4000.0,0.00017534,2]
[401941384,1768415450085,-4000.0,0.00017534,2]
[401941385,1768415450095,-194.72792766,0.00017543,2]
[401941386,1768415450105,-533.88981491,0.00017543,2]
[401941387,1768415450114,-2579.17784983,0.00017543,2]
[401941388,1768415450124,-2137.48177052,0.000176,2]
[401941389,1768415450133,-1096.95736168,0.00017648,10]
[401941390,1768415450143,-4500.0,0.00017656,2]
[401941391,1768415450153,-1699.34641428,0.00017656,2]
[401941392,1768415450162,-4500.0,0.00017656,2]
[401941393,1768415450173,-4500.0,0.00017656,2]
[401941394,1768415450182,-4500.0,0.00017656,2]
[401941395,1768415450192,-160.0,0.00017702,2]
[401941396,1768415450201,-1041.66666667,0.00017702,2]
[401941397,1768415450211,-824.96985136,0.00017722,2]
[401941398,1768415450221,-31110.0,0.00017764,2]
[401941399,1768415450230,-400.30202268,0.00017842,2]
[401941400,1768415450240,-60000.0,0.000179,3]
[401941401,1768415450250,-886.2,0.00017924,2]
[401941402,1768415450259,-12705.37423421,0.00017989,2]
[401941403,1768415450269,-150512.98381193,0.00018,2]
[401941404,1768415450278,-42910.83449574,0.00018,5]
[401941405,1768415450290,-2700.0,0.00018056,2]
[401941406,1768415450299,-1000.0,0.00018068,2]
[401941407,1768415450309,-791.0,0.00018068,2]
[401941408,1768415450318,-4500.0,0.00018082,2]
[401941409,1768415450328,-4500.0,0.00018082,2]
[401941410,1768415450338,-4500.0,0.00018082,2]
[401941411,1768415450349,-201.93286099,0.00018091,2]
[401941412,1768415450358,-553.64373807,0.00018091,2]
[401941413,1768415450367,-2674.60743027,0.00018091,2]
[401941414,1768415450377,-5000.0,0.00018204,2]
[401941415,1768415450387,-5000.0,0.00018204,2]
[401941416,1768415450396,-5000.0,0.00018204,2]
[401941417,1768415450406,-5000.0,0.00018204,2]
[401941418,1768415450417,-29887.7748005,0.00018219,2]
[401941419,1768415450427,-10012.5828855,0.00018219,2]
[401941420,1768415450436,-2000.0,0.00018293,7]
[401941421,1768415450446,-32261.07,0.00018312,2]
[401941422,1768415450455,-3200.0,0.00018356,2]
[401941423,1768415450465,-17638.73740036,0.00018371,2]
[401941424,1768415450475,-3000.0,0.00018604,2]
[401941425,1768415450484,-1096.95736168,0.00018619,11]
[401941426,1768415450494,-600.0,0.0001863,2]
[401941427,1768415450504,-5000.0,0.0001863,2]
[401941428,1768415450514,-5000.0,0.0001863,2]
[401941429,1768415450523,-5000.0,0.0001863,2]
[401941430,1768415450533,-209.40437684,0.00018639,2]
[401941431,1768415450542,-574.12855637,0.00018639,2]
[401941432,1768415450552,-2773.56790519,0.00018639,2]
[401941433,1768415450562,-270.16085627,0.00018646,2]
[401941434,1768415450572,-6668.8639777,0.00018676,2]
[401941435,1768415450581,-2234.1092227,0.00018676,2]
[401941436,1768415450591,-2588.14205975,0.00018752,2]
[401941437,1768415450602,-5500.0,0.00018752,2]
[401941438,1768415450613,-5500.0,0.00018752,2]
[401941439,1768415450759,-5500.0,0.00018752,2]
[401941440,1768415450768,-5000.0,0.00018863,2]
[401941441,1768415450777,-303.10001603,0.000189,2]
[401941442,1768415450787,-303.10001603,0.000189,2]
[401941443,1768415450796,-3162.0,0.00018942,2]
[401941444,1768415450805,-2603.49,0.00019,2]
[401941445,1768415450814,-17969.48957745,0.00019,2]
[401941446,1768415450823,-998.3663695,0.0001904,2]
[401941447,1768415450832,-2233.792441,0.0001904,2]
[401941448,1768415450841,-303.10001603,0.00019089,2]
[401941449,1768415450850,-303.10001603,0.00019089,2]
[401941450,1768415450860,-3300.0,0.00019152,2]
[401941451,1768415450868,-507.1352,0.00019178,2]
[401941452,1768415450877,-200.0,0.00019178,2]
[401941453,1768415450886,-507.1352,0.00019178,2]
[401941454,1768415450895,-507.1352,0.00019178,2]
[401941455,1768415450904,-507.1352,0.00019178,2]
[401941456,1768415450913,-507.1352,0.00019178,2]
[401941457,1768415450922,-507.1352,0.00019178,2]
[401941458,1768415450931,-507.1352,0.00019178,2]
[401941459,1768415450942,-507.1352,0.00019178,2]
[401941460,1768415450952,-507.1352,0.00019178,2]
[401941461,1768415450962,-507.1352,0.00019178,2]
[401941462,1768415450972,-180.72597661,0.00019178,2]
[401941463,1768415450982,-151.0,0.00019178,2]
[401941464,1768415450991,-151.0,0.00019178,2]
[401941465,1768415451000,-151.0,0.00019178,2]
[401941466,1768415451011,-151.0,0.00019178,2]
[401941467,1768415451021,-151.0,0.00019178,2]
[401941468,1768415451031,-151.0,0.00019178,2]
[401941469,1768415451040,-151.0,0.00019178,2]
[401941470,1768415451051,-151.0,0.00019178,2]
[401941471,1768415451060,-151.0,0.00019178,2]
[401941472,1768415451070,-151.0,0.00019178,2]
[401941473,1768415451080,-151.0,0.00019178,2]
[401941474,1768415451089,-235.000068,0.00019178,2]
[401941475,1768415451098,-5500.0,0.00019178,2]
[401941476,1768415451108,-5500.0,0.00019178,2]
[401941477,1768415451117,-5500.0,0.00019178,2]
[401941478,1768415451127,-217.15233878,0.00019187,2]
[401941479,1768415451136,-595.37131296,0.00019187,2]
[401941480,1768415451145,-2876.18991768,0.00019187,2]
[401941481,1768415451154,-31763.1,0.000192,2]
[401941482,1768415451164,-4527.87,0.000192,2]
[401941483,1768415451172,-214.05,0.000192,2]
[401941484,1768415451182,-243.5,0.000192,2]
[401941485,1768415451191,-167.77,0.000192,2]
[401941486,1768415451200,-500.99801519,0.00019205,5]
[401941487,1768415451210,-886.2,0.00019249,2]
[401941488,1768415451219,-303.10001603,0.00019278,2]
[401941489,1768415451228,-303.10001603,0.00019278,2]
[401941490,1768415451237,-3040.44472477,0.000193,2]
[401941491,1768415451247,-6000.0,0.000193,2]
[401941492,1768415451257,-6000.0,0.000193,2]
[401941493,1768415451266,-2000.0,0.00019378,7]
[401941494,1768415451275,-307.61092211,0.00019452,2]
[401941495,1768415451285,-303.10001603,0.00019467,2]
[401941496,1768415451295,-303.10001603,0.00019467,2]
[401941497,1768415451304,-1096.95736168,0.0001959,13]
[401941498,1768415451314,-168.28,0.00019625,2]
[401941499,1768415451323,-303.10001603,0.00019656,2]
[401941500,1768415451334,-303.10001603,0.00019656,2]
[401941501,1768415451343,-222.7656479,0.00019681,2]
[401941502,1768415451352,-498.4264651,0.00019681,2]
[401941503,1768415451362,-11357.60810118,0.000197,3]
[401941504,1768415451372,-156.20051056,0.000197,2]
[401941505,1768415451381,-911.30390557,0.00019722,2]
[401941506,1768415451391,-800.0,0.00019726,2]
[401941507,1768415451400,-250.0,0.00019726,2]
[401941508,1768415451411,-250.0,0.00019726,2]
[401941509,1768415451420,-6000.0,0.00019726,2]
[401941510,1768415451430,-6000.0,0.00019726,2]
[401941511,1768415451441,-6000.0,0.00019726,2]
[401941512,1768415451451,-225.18697532,0.00019735,2]
[401941513,1768415451461,-617.40005154,0.00019735,2]
[401941514,1768415451470,-2982.60894464,0.00019735,2]
[401941515,1768415451481,-454.65002405,0.00019845,4]
[401941516,1768415451490,-454.65002405,0.00019845,4]
[401941517,1768415451497,-6500.0,0.00019848,2]
[401941518,1768415451506,-6500.0,0.00019848,2]
[401941519,1768415451517,-1000.0,0.00019875,2]
[401941520,1768415451525,-1000.0,0.00019875,2]
[401941521,1768415451533,-156.17,0.000199,2]
[401941522,1768415451542,-75199.65731769,0.0002,7]
[401941523,1768415451551,-202.7514447,0.0002,2]
[401941524,1768415451559,-504.32904356,0.0002,2]
[401941525,1768415451567,-17587.92944107,0.0002,2]
[401941526,1768415451576,-9661.0,0.0002,2]
[401941527,1768415451585,-151.55000802,0.0002,2]
[401941528,1768415451594,-507.1352,0.0002,4]
[401941529,1768415451605,-507.1352,0.0002,4]
[401941530,1768415451615,-507.1352,0.0002,4]
[401941531,1768415451625,-507.1352,0.0002,4]
[401941532,1768415451635,-507.1352,0.0002,4]
[401941533,1768415451644,-300.0,0.0002,2]
[401941534,1768415451654,-507.1352,0.0002,4]
[401941535,1768415451664,-507.1352,0.0002,4]
[401941536,1768415451675,-507.1352,0.0002,4]
[401941537,1768415451685,-507.1352,0.0002,4]
[401941538,1768415451694,-668.88471487,0.0002,2]
[401941539,1768415451704,-14703.49659754,0.0002,2]
[401941540,1768415451713,-371.66132516,0.0002,2]
[401941541,1768415451723,-200181.45649297,0.0002,2]
[401941542,1768415451732,-6000.89259863,0.0002,2]
[401941543,1768415451742,-804.32909815,0.0002,2]
[401941544,1768415451751,-163524.2208646,0.0002,7]
[401941545,1768415451761,-74737.25492349,0.0002,2]
[401941546,1768415451770,-809.68655087,0.0002,2]
[401941547,1768415451779,-673.07189375,0.0002,10]
[401941548,1768415451789,-454.65002405,0.00020034,4]
[401941549,1768415451799,-454.65002405,0.00020034,4]
[401941550,1768415451808,-714.695894,0.00020101,2]
[401941551,1768415451818,-503.71435101,0.0002013,2]
[401941552,1768415451827,-12705.37423421,0.00020183,2]
[401941553,1768415451836,-454.65002405,0.00020223,4]
[401941554,1768415451845,-454.65002405,0.00020223,4]
[401941555,1768415451854,-200.91058964,0.00020274,2]
[401941556,1768415451864,-350.0,0.00020274,2]
[401941557,1768415451873,-4402.72600724,0.00020274,2]
[401941558,1768415451882,-6500.0,0.00020274,2]
[401941559,1768415451892,-3946.58201638,0.00020274,2]
[401941560,1768415451901,-233.51889341,0.00020283,2]
[401941561,1768415451911,-640.24385345,0.00020283,2]
[401941562,1768415451920,-3092.96547559,0.00020283,2]
[401941563,1768415451930,-4683.87260271,0.00020396,2]
[401941564,1768415451940,-2073.24025849,0.00020396,2]
[401941565,1768415451948,-243.5,0.000204,2]
[401941566,1768415451957,-507.1352,0.00020411,5]
[401941567,1768415451965,-507.1352,0.00020411,5]
[401941568,1768415451974,-507.1352,0.00020411,5]
[401941569,1768415451983,-507.1352,0.00020411,5]
[401941570,1768415451993,-507.1352,0.00020411,5]
[401941571,1768415452002,-507.1352,0.00020411,5]
[401941572,1768415452011,-507.1352,0.00020411,5]
[401941573,1768415452021,-507.1352,0.00020411,5]
[401941574,1768415452031,-507.1352,0.00020411,5]
[401941575,1768415452040,-454.65002405,0.00020412,4]
[401941576,1768415452050,-454.65002405,0.00020412,4]
[401941577,1768415452060,-2000.0,0.00020463,7]
[401941578,1768415452071,-4527.87,0.000205,2]
[401941579,1768415452080,-214.05,0.000205,2]
[401941580,1768415452090,-167.77,0.000205,2]
[401941581,1768415452100,-1096.95736168,0.00020562,14]
[401941582,1768415452109,-886.2,0.00020573,2]
[401941583,1768415452119,-454.65002405,0.00020601,4]
[401941584,1768415452129,-454.65002405,0.00020601,4]
[401941585,1768415452139,-1389.51235473,0.0002061,2]
[401941586,1768415452148,-8990.747853,0.00020644,7]
[401941587,1768415452158,-335.0537895,0.00020712,7]
[401941588,1768415452167,-1204.31210392,0.00020712,7]
[401941589,1768415452177,-31763.1,0.000208,2]
[401941590,1768415452187,-1000.0,0.00020822,2]
[401941591,1768415452197,-450.0,0.00020822,2]
[401941592,1768415452207,-7000.0,0.00020822,2]
[401941593,1768415452217,-242.15909246,0.00020831,2]
[401941594,1768415452225,-663.93287602,0.00020831,2]
[401941595,1768415452234,-3207.40519818,0.00020831,2]
[401941596,1768415452244,-4427.0,0.00020836,2]
[401941597,1768415452253,-256.51440562,0.000209,2]
[401941598,1768415452262,-277.38884084,0.00021,2]
[401941599,1768415452271,-50000.0,0.00021,2]
[401941600,1768415452280,-3000.0,0.00021,2]
[401941601,1768415452290,-3000.0,0.0002101,2]
[401941602,1768415452299,-3000.0,0.0002102,2]
[401941603,1768415452309,-3000.0,0.0002103,2]
[401941604,1768415452318,-3000.0,0.0002104,2]
[401941605,1768415452327,-3262.45677564,0.00021045,2]
[401941606,1768415452336,-3000.0,0.0002105,2]
[401941607,1768415452346,-3000.0,0.0002106,2]
[401941608,1768415452355,-3000.0,0.0002107,2]
[401941609,1768415452365,-3000.0,0.0002108,2]
[401941610,1768415452375,-3000.0,0.0002109,2]
[401941611,1768415452384,-3000.0,0.000211,2]
[401941612,1768415452393,-3000.0,0.0002111,2]
[401941613,1768415452404,-3000.0,0.0002112,2]
[401941614,1768415452413,-3000.0,0.0002113,2]
[401941615,1768415452422,-3000.0,0.0002114,2]
[401941616,1768415452432,-3000.0,0.0002115,2]
[401941617,1768415452441,-3000.0,0.0002116,2]
[401941618,1768415452451,-3000.0,0.0002117,2]
[401941619,1768415452460,-3000.0,0.0002118,2]
[401941620,1768415452469,-3000.0,0.0002119,2]
[401941621,1768415452486,-3000.0,0.000212,2]
[401941622,1768415452499,-3000.0,0.0002121,2]
[401941623,1768415452508,-3000.0,0.0002122,2]
[401941624,1768415452518,-3000.0,0.0002123,2]
[401941625,1768415452527,-3000.0,0.0002124,2]
[401941626,1768415452537,-3000.0,0.0002125,2]
[401941627,1768415452546,-3000.0,0.0002126,2]
[401941628,1768415452556,-3000.0,0.0002127,2]
[401941629,1768415452565,-3000.0,0.0002128,2]
[401941630,1768415452574,-1340.21515801,0.00021283,7]
[401941631,1768415452584,-17638.73740036,0.00021287,2]
[401941632,1768415452593,-3000.0,0.0002129,2]
[401941633,1768415452603,-3000.0,0.000213,2]
[401941634,1768415452615,-3000.0,0.0002131,2]
[401941635,1768415452625,-3000.0,0.0002132,2]
[401941636,1768415452635,-3000.0,0.0002133,2]
[401941637,1768415452644,-3000.0,0.0002134,2]
[401941638,1768415452655,-3000.0,0.0002135,2]
[401941639,1768415452664,-3000.0,0.0002136,2]
[401941640,1768415452673,-550.0,0.0002137,2]
[401941641,1768415452684,-7500.0,0.0002137,2]
[401941642,1768415452694,-3000.0,0.0002137,2]
[401941643,1768415452704,-265.87708981,0.00021379,2]
[401941644,1768415452714,-688.49839244,0.00021379,2]
[401941645,1768415452724,-3000.0,0.0002138,2]
[401941646,1768415452733,-3000.0,0.0002139,2]
[401941647,1768415452743,-3000.0,0.000214,2]
[401941648,1768415452752,-3000.0,0.0002141,2]
[401941649,1768415452762,-3000.0,0.0002142,2]
[401941650,1768415452771,-4716.661967,0.0002143,2]
[401941651,1768415452780,-1040.0176033,0.000215,2]
[401941652,1768415452789,-12864.48059022,0.000215,2]
[401941653,1768415452799,-169712.46148326,0.000215,2]
[401941654,1768415452809,-1096.95736168,0.00021533,16]
[401941655,1768415452820,-2000.0,0.00021549,7]
[401941656,1768415452829,-11357.54,0.000217,3]
[401941657,1768415452838,-997.63795978,0.00021722,2]
[401941658,1768415452848,-243.5,0.000218,2]
[401941659,1768415452859,-167.77,0.000218,2]
[401941660,1768415452869,-3015.48410553,0.00021855,7]
[401941661,1768415452881,-1000.0,0.00021862,10]
[401941662,1768415452890,-1000.0,0.00021862,10]
[401941663,1768415452899,-579.0,0.00021862,10]
[401941664,1768415452909,-886.2,0.00021898,2]
[401941665,1768415452918,-151.0,0.00021918,2]
[401941666,1768415452928,-151.0,0.00021918,2]
[401941667,1768415452937,-151.0,0.00021918,2]
[401941668,1768415452947,-151.0,0.00021918,2]
[401941669,1768415452957,-151.0,0.00021918,2]
[401941670,1768415452965,-151.0,0.00021918,2]
[401941671,1768415452975,-272.028283,0.00021918,2]
[401941672,1768415452984,-164.260276,0.00021918,2]
[401941673,1768415452993,-241.541461,0.00021918,2]
[401941674,1768415453002,-151.0,0.00021918,2]
[401941675,1768415453011,-151.0,0.00021918,2]
[401941676,1768415453020,-151.0,0.00021918,2]
[401941677,1768415453030,-151.0,0.00021918,2]
[401941678,1768415453040,-151.0,0.00021918,2]
[401941679,1768415453050,-151.0,0.00021918,2]
[401941680,1768415453059,-151.0,0.00021918,2]
[401941681,1768415453069,-151.0,0.00021918,2]
[401941682,1768415453079,-151.0,0.00021918,2]
[401941683,1768415453089,-151.0,0.00021918,2]
[401941684,1768415453099,-151.0,0.00021918,2]
[401941685,1768415453109,-151.0,0.00021918,2]
[401941686,1768415453119,-151.0,0.00021918,2]
[401941687,1768415453129,-151.0,0.00021918,2]
[401941688,1768415453139,-151.0,0.00021918,2]
[401941689,1768415453149,-151.0,0.00021918,2]
[401941690,1768415453158,-151.0,0.00021918,2]
[401941691,1768415453168,-151.0,0.00021918,2]
[401941692,1768415453178,-261.730243,0.00021918,2]
[401941693,1768415453187,-151.0,0.00021918,2]
[401941694,1768415453196,-154.979883,0.00021918,2]
[401941695,1768415453206,-151.0,0.00021918,2]
[401941696,1768415453216,-151.0,0.00021918,2]
[401941697,1768415453225,-151.0,0.00021918,2]
[401941698,1768415453235,-151.0,0.00021918,2]
[401941699,1768415453245,-151.0,0.00021918,2]
[401941700,1768415453255,-151.0,0.00021918,2]
[401941701,1768415453265,-151.0,0.00021918,2]
[401941702,1768415453275,-151.0,0.00021918,2]
[401941703,1768415453284,-234.643774,0.00021918,2]
[401941704,1768415453295,-151.0,0.00021918,2]
[401941705,1768415453304,-151.0,0.00021918,2]
[401941706,1768415453319,-269.235719,0.00021918,2]
[401941707,1768415453329,-228.779396,0.00021918,2]
[401941708,1768415453339,-462.387637,0.00021918,2]
[401941709,1768415453348,-462.387637,0.00021918,2]
[401941710,1768415453359,-462.387637,0.00021918,2]
[401941711,1768415453368,-462.387637,0.00021918,2]
[401941712,1768415453378,-462.387637,0.00021918,2]
[401941713,1768415453388,-462.387637,0.00021918,2]
[401941714,1768415453398,-462.387637,0.00021918,2]
[401941715,1768415453408,-462.387637,0.00021918,2]
[401941716,1768415453417,-462.387637,0.00021918,2]
[401941717,1768415453427,-462.387637,0.00021918,2]